fUSD/lending_fUSD_20240222
["ID","MTS","AMOUNT","RATE_DAILY","PERIOD"]
[314867220,1708601440549,-500.0,0.00032876,2]
[314867221,1708601440559,-500.0,0.00032876,2]
[314867222,1708601440569,-500.0,0.00032876,2]
[314867223,1708601440579,-500.0,0.00032876,2]
[314867224,1708601440590,-500.0,0.00032876,2]
[314867225,1708601440600,-510.86916188,0.00032876,2]
[314867226,1708601440610,-500.0,0.00032876,2]
[314867227,1708601440620,-500.0,0.00032876,2]
[314867228,1708601440630,-1205.22,0.00032876,2]
[314867229,1708601440641,-500.0,0.00032876,2]
[314867230,1708601440651,-500.0,0.00032876,2]
[314867231,1708601440660,-500.0,0.00032876,2]
[314867232,1708601440670,-500.0,0.00032876,2]
[314867233,1708601440680,-500.0,0.00032876,2]
[314867234,1708601440690,-500.0,0.00032876,2]
[314867235,1708601440700,-500.0,0.00032876,2]
[314867236,1708601440710,-500.0,0.00032876,2]
[314867237,1708601440720,-619.89,0.00032876,2]
[314867238,1708601440729,-500.0,0.00032876,2]
[314867239,1708601440739,-500.0,0.00032876,2]
[314867240,1708601440749,-500.0,0.00032876,2]
[314867241,1708601440759,-500.0,0.00032876,2]
[314867242,1708601440769,-505.31643425,0.00032876,2]
[314867243,1708601440783,-500.0,0.00032876,2]
[314867244,1708601440793,-500.0,0.00032876,2]
[314867245,1708601440803,-500.0,0.00032876,2]
[314867246,1708601440813,-500.0,0.00032876,2]
[314867247,1708601440823,-500.0,0.00032876,2]
[314867248,1708601440834,-502.92,0.00032876,2]
[314867249,1708601440844,-500.0,0.00032876,2]
[314867250,1708601440854,-500.0,0.00032876,2]
[314867251,1708601440864,-500.0,0.00032876,2]
[314867252,1708601440875,-630.43,0.00032876,2]
[314867253,1708601440886,-500.0,0.00032876,2]
[314867254,1708601440897,-500.0,0.00032876,2]
[314867255,1708601440907,-508.25570105,0.00032876,2]
[314867256,1708601440917,-500.0,0.00032876,2]
[314867257,1708601440928,-500.0,0.00032876,2]
[314867258,1708601440938,-974.34,0.00032876,2]
[314867259,1708601440948,-500.0,0.00032876,2]
[314867260,1708601440958,-500.0,0.00032876,2]
[314867261,1708601440968,-500.0,0.00032876,2]
[314867262,1708601440978,-500.0,0.00032876,2]
[314867263,1708601440989,-500.0,0.00032876,2]
[314867264,1708601440999,-500.0,0.00032876,2]
[314867265,1708601441009,-544.61,0.00032876,2]
[314867266,1708601441019,-968.5,0.00032876,2]
[314867267,1708601441030,-500.0,0.00032876,2]
[314867268,1708601441040,-500.0,0.00032876,2]
[314867269,1708601441050,-500.0,0.00032876,2]
[314867270,1708601441060,-500.0,0.00032876,2]
[314867271,1708601441069,-500.0,0.00032876,2]
[314867272,1708601441080,-500.0,0.00032876,2]
[314867273,1708601441090,-500.0,0.00032876,2]
[314867274,1708601441099,-500.0,0.00032876,2]
[314867275,1708601441109,-500.0,0.00032876,2]
[314867276,1708601441119,-500.0,0.00032876,2]
[314867277,1708601441129,-500.0,0.00032876,2]
[314867278,1708601441138,-500.0,0.00032876,2]
[314867279,1708601441148,-500.0,0.00032876,2]
[314867280,1708601441157,-500.0,0.00032876,2]
[314867281,1708601441167,-500.0,0.00032876,2]
[314867282,1708601441176,-500.0,0.00032876,2]
[314867283,1708601441186,-581.24606873,0.00032876,2]
[314867284,1708601441196,-500.0,0.00032876,2]
[314867285,1708601441205,-500.0,0.00032876,2]
[314867286,1708601441215,-500.0,0.00032876,2]
[314867287,1708601441225,-500.0,0.00032876,2]
[314867288,1708601441235,-500.0,0.00032876,2]
[314867289,1708601441244,-500.0,0.00032876,2]
[314867290,1708601441254,-500.0,0.00032876,2]
[314867291,1708601441264,-500.0,0.00032876,2]
[314867292,1708601441274,-634.32,0.00032876,2]
[314867293,1708601441284,-500.0,0.00032876,2]
[314867294,1708601441293,-500.0,0.00032876,2]
[314867295,1708601441303,-500.0,0.00032876,2]
[314867296,1708601441313,-500.0,0.00032876,2]
[314867297,1708601441323,-500.0,0.00032876,2]
[314867298,1708601441333,-500.0,0.00032876,2]
[314867299,1708601441343,-500.0,0.00032876,2]
[314867300,1708601441353,-500.0,0.00032876,2]
[314867301,1708601441362,-1122.27,0.00032876,2]
[314867302,1708601441372,-500.0,0.00032876,2]
[314867303,1708601441382,-500.0,0.00032876,2]
[314867304,1708601441391,-500.0,0.00032876,2]
[314867305,1708601441401,-500.0,0.00032876,2]
[314867306,1708601441411,-500.0,0.00032876,2]
[314867307,1708601441420,-562.0,0.00032876,2]
[314867308,1708601441430,-1668.09,0.00032876,2]
[314867309,1708601441440,-500.0,0.00032876,2]
[314867310,1708601441449,-500.0,0.00032876,2]
[314867311,1708601441459,-500.0,0.00032876,2]
[314867312,1708601441469,-549.67211899,0.00032876,2]
[314867313,1708601441479,-500.0,0.00032876,2]
[314867314,1708601441489,-500.0,0.00032876,2]
[314867315,1708601441499,-500.0,0.00032876,2]
[314867316,1708601441508,-862.76,0.00032876,2]
[314867317,1708601441518,-500.0,0.00032876,2]
[314867318,1708601441529,-500.0,0.00032876,2]
[314867319,1708601441540,-505.26905185,0.00032876,2]
[314867320,1708601441551,-514.61,0.00032876,2]
[314867321,1708601441561,-1000.0,0.00032876,3]
[314867322,1708601441571,-500.0,0.00032876,2]
[314867323,1708601441582,-500.0,0.00032876,2]
[314867324,1708601441591,-500.0,0.00032876,2]
[314867325,1708601441601,-500.0,0.00032876,2]
[314867326,1708601441611,-500.0,0.00032876,2]
[314867327,1708601441622,-500.0,0.00032876,2]
[314867328,1708601441632,-500.0,0.00032876,2]
[314867330,1708601441642,-732.79,0.00032876,2]
[314867331,1708601441651,-500.0,0.00032876,2]
[314867332,1708601441660,-500.0,0.00032876,2]
[314867333,1708601441670,-500.0,0.00032876,2]
[314867334,1708601441681,-1059.6,0.00032876,2]
[314867335,1708601441691,-500.0,0.00032876,2]
[314867336,1708601441700,-4050.56647764,0.00032876,2]
[314867337,1708601441710,-500.0,0.00032876,2]
[314867338,1708601441721,-500.0,0.00032876,2]
[314867339,1708601441731,-500.0,0.00032876,2]
[314867340,1708601441741,-625.66,0.00032876,2]
[314867341,1708601441750,-500.0,0.00032876,2]
[314867342,1708601441760,-500.0,0.00032876,2]
[314867343,1708601441770,-500.0,0.00032876,2]
[314867344,1708601441780,-500.0,0.00032876,2]
[314867345,1708601441790,-502.8188103,0.00032876,2]
[314867346,1708601441799,-500.0,0.00032876,2]
[314867347,1708601441809,-500.0,0.00032876,2]
[314867348,1708601441818,-500.0,0.00032876,2]
[314867349,1708601441828,-544.10048637,0.00032876,2]
[314867350,1708601441838,-500.0,0.00032876,2]
[314867351,1708601441848,-1279.47,0.00032876,2]
[314867352,1708601441858,-500.0,0.00032876,2]
[314867353,1708601441867,-500.0,0.00032876,2]
[314867354,1708601441877,-500.0,0.00032876,2]
[314867355,1708601441887,-500.0,0.00032876,2]
[314867356,1708601441896,-500.0,0.00032876,2]
[314867357,1708601441906,-500.0,0.00032876,2]
[314867358,1708601441916,-500.0,0.00032876,2]
[314867359,1708601441925,-500.0,0.00032876,2]
[314867360,1708601441935,-1728.96,0.00032876,2]
[314867361,1708601441944,-500.0,0.00032876,2]
[314867362,1708601441953,-526.65,0.00032876,2]
[314867363,1708601441963,-500.0,0.00032876,2]
[314867364,1708601441972,-500.0,0.00032876,2]
[314867365,1708601441982,-500.0,0.00032876,2]
[314867366,1708601441991,-500.0,0.00032876,2]
[314867367,1708601442001,-500.0,0.00032876,2]
[314867368,1708601442011,-500.0,0.00032876,2]
[314867369,1708601442020,-500.0,0.00032876,2]
[314867370,1708601442030,-500.0,0.00032876,2]
[314867371,1708601442039,-500.0,0.00032876,2]
[314867372,1708601442049,-500.0,0.00032876,2]
[314867373,1708601442058,-676.82,0.00032876,2]
[314867374,1708601442067,-500.0,0.00032876,2]
[314867375,1708601442076,-500.0,0.00032876,2]
[314867376,1708601442086,-500.0,0.00032876,2]
[314867377,1708601442095,-686.61,0.00032876,2]
[314867378,1708601442104,-500.0,0.00032876,2]
[314867379,1708601442114,-912.13,0.00032876,2]
[314867380,1708601442123,-500.0,0.00032876,2]
[314867381,1708601442132,-500.0,0.00032876,2]
[314867382,1708601442141,-571.79,0.00032876,2]
[314867383,1708601442150,-500.0,0.00032876,2]
[314867384,1708601442159,-500.0,0.00032876,2]
[314867385,1708601442168,-500.0,0.00032876,2]
[314867386,1708601442289,-317.17660466,0.00032876,2]
[314867387,1708601442298,-500.0,0.00032876,2]
[314867388,1708601442307,-723.79,0.00032876,2]
[314867389,1708601442317,-914.74,0.00032876,2]
[314867390,1708601442325,-500.0,0.00032876,2]
[314867391,1708601442335,-500.0,0.00032876,2]
[314867392,1708601442344,-500.0,0.00032876,2]
[314867393,1708601442354,-500.0,0.00032876,2]
[314867394,1708601442363,-500.0,0.00032876,2]
[314867395,1708601442372,-157.0,0.00032876,2]
[314867396,1708601442382,-679.58,0.00032876,2]
[314867397,1708601442391,-500.0,0.00032876,2]
[314867398,1708601442400,-500.0,0.00032876,2]
[314867399,1708601442410,-930.61,0.00032876,2]
[314867400,1708601442419,-500.0,0.00032876,2]
[314867401,1708601442428,-500.0,0.00032876,2]
[314867402,1708601442437,-1119.25,0.00032876,2]
[314867403,1708601442446,-500.0,0.00032876,2]
[314867404,1708601442455,-765.06,0.00032876,2]
[314867405,1708601442465,-269.36694699,0.00032876,2]
[314867406,1708601442474,-534.99,0.00032876,2]
[314867407,1708601442484,-500.0,0.00032876,2]
[314867408,1708601442493,-643.15,0.00032876,2]
[314867409,1708601442502,-500.0,0.00032876,2]
[314867410,1708601442512,-500.0,0.00032876,2]
[314867411,1708601442521,-500.0,0.00032876,2]
[314867412,1708601442530,-500.0,0.00032876,2]
[314867413,1708601442540,-556.18,0.00032876,2]
[314867414,1708601442551,-547.89,0.00032876,2]
[314867415,1708601442561,-500.0,0.00032876,2]
[314867416,1708601442570,-500.0,0.00032876,2]
[314867417,1708601442579,-512.72,0.00032876,2]
[314867418,1708601442590,-925.47,0.00032876,2]
[314867419,1708601442599,-500.0,0.00032876,2]
[314867420,1708601442609,-500.0,0.00032876,2]
[314867421,1708601442618,-500.0,0.00032876,2]
[314867422,1708601442628,-449.40770924,0.00032876,2]
[314867423,1708601442637,-829.9,0.00032876,2]
[314867424,1708601442647,-500.0,0.00032876,2]
[314867425,1708601442656,-500.0,0.00032876,2]
[314867426,1708601442665,-641.4102946,0.00032876,2]
[314867427,1708601442674,-500.0,0.00032876,2]
[314867428,1708601442684,-500.0,0.00032876,2]
[314867429,1708601442694,-500.0,0.00032876,2]
[314867430,1708601442703,-635.44,0.00032876,2]
[314867431,1708601442712,-500.0,0.00032876,2]
[314867432,1708601442722,-658.96,0.00032876,2]
[314867433,1708601442732,-500.0,0.00032876,2]
[314867434,1708601442741,-500.0,0.00032876,2]
[314867435,1708601442751,-687.57,0.00032876,2]
[314867436,1708601442760,-500.0,0.00032876,2]
[314867437,1708601442770,-500.0,0.00032876,2]
[314867438,1708601442779,-500.0,0.00032876,2]
[314867439,1708601442789,-694.11,0.00032876,2]
[314867440,1708601442798,-500.0,0.00032876,2]
[314867441,1708601442808,-504.78672289,0.00032876,2]
[314867442,1708601442817,-716.07,0.00032876,2]
[314867443,1708601442827,-500.0,0.00032876,2]
[314867444,1708601442838,-500.0,0.00032876,2]
[314867445,1708601442848,-500.0,0.00032876,2]
[314867446,1708601442858,-500.0,0.00032876,2]
[314867447,1708601442868,-688.57,0.00032876,2]
[314867448,1708601442878,-500.0,0.00032876,2]
[314867449,1708601442888,-500.0,0.00032876,2]
[314867450,1708601442898,-681.04,0.00032876,2]
[314867451,1708601442907,-500.0,0.00032876,2]
[314867452,1708601442917,-978.63,0.00032876,2]
[314867454,1708601442926,-500.0,0.00032876,2]
[314867456,1708601442935,-500.0,0.00032876,2]
[314867457,1708601442944,-500.0,0.00032876,2]
[314867458,1708601442954,-500.0,0.00032876,2]
[314867459,1708601442963,-510.8563181,0.00032876,2]
[314867460,1708601442972,-500.0,0.00032876,2]
[314867461,1708601442982,-1000.0,0.00032876,7]
[314867462,1708601442991,-500.0,0.00032876,2]
[314867463,1708601443001,-500.0,0.00032876,2]
[314867464,1708601443011,-500.0,0.00032876,2]
[314867465,1708601443020,-500.0,0.00032876,2]
[314867467,1708601443030,-918.95,0.00032876,2]
[314867469,1708601443039,-500.0,0.00032876,2]
[314867471,1708601443048,-614.2,0.00032876,2]
[314867473,1708601443057,-905.31,0.00032876,2]
[314867475,1708601443067,-500.0,0.00032876,2]
[314867477,1708601443076,-323.14568425,0.00032876,2]
[314867479,1708601443086,-510.47749136,0.00032876,2]
[314867480,1708601443096,-500.0,0.00032876,2]
[314867481,1708601443104,-500.0,0.00032876,2]
[314867482,1708601443114,-500.0,0.00032876,2]
[314867483,1708601443123,-500.0,0.00032876,2]
[314867484,1708601443132,-763.21,0.00032876,2]
[314867485,1708601443142,-1000.04,0.00032876,2]
[314867486,1708601443152,-500.0,0.00032876,2]
[314867487,1708601443162,-500.0,0.00032876,2]
[314867488,1708601443171,-500.0,0.00032876,2]
[314867489,1708601443180,-500.0,0.00032876,2]
[314867490,1708601443190,-500.0,0.00032876,2]
[314867491,1708601443199,-500.0,0.00032876,2]
[314867492,1708601443208,-500.0,0.00032876,2]
[314867493,1708601443218,-879.77,0.00032876,2]
[314867494,1708601443227,-500.0,0.00032876,2]
[314867495,1708601443236,-500.0,0.00032876,2]
[314867496,1708601443245,-703.72,0.00032876,2]
[314867497,1708601443255,-500.0,0.00032876,2]
[314867498,1708601443264,-521.26,0.00032876,2]
[314867499,1708601443275,-646.64,0.00032876,2]
[314867500,1708601443284,-500.0,0.00032876,2]
[314867501,1708601443293,-500.0,0.00032876,2]
[314867502,1708601443302,-928.62,0.00032876,2]
[314867503,1708601443311,-500.0,0.00032876,2]
[314867504,1708601443320,-856.99,0.00032876,2]
[314867505,1708601443330,-500.0,0.00032876,2]
[314867506,1708601443340,-500.0,0.00032876,2]
[314867507,1708601443349,-500.0,0.00032876,2]
[314867508,1708601443358,-500.0,0.00032876,2]
[314867509,1708601443366,-500.0,0.00032876,2]
[314867510,1708601443375,-776.39,0.00032876,2]
[314867511,1708601443386,-1134.57,0.00032876,2]
[314867512,1708601443395,-500.0,0.00032876,2]
[314867513,1708601443404,-500.0,0.00032876,2]
[314867514,1708601443413,-686.04,0.00032876,2]
[314867515,1708601443423,-501.74,0.00032876,2]
[314867516,1708601443432,-896.19,0.00032876,2]
[314867517,1708601443441,-500.0,0.00032876,2]
[314867518,1708601443451,-614.69,0.00032876,2]
[314867519,1708601443461,-500.0,0.00032876,2]
[314867520,1708601443470,-500.0,0.00032876,2]
[314867521,1708601443480,-500.0,0.00032876,2]
[314867522,1708601443489,-518.69,0.00032876,2]
[314867523,1708601443499,-685.21,0.00032876,2]
[314867524,1708601443508,-1345.47,0.00032876,2]
[314867525,1708601443518,-500.0,0.00032876,2]
[314867527,1708601443528,-500.0,0.00032876,2]
[314867528,1708601443538,-500.0,0.00032876,2]
[314867530,1708601443553,-500.0,0.00032876,2]
[314867531,1708601443562,-500.0,0.00032876,2]
[314867532,1708601443572,-708.46,0.00032876,2]
[314867533,1708601443581,-500.0,0.00032876,2]
[314867534,1708601443591,-500.0,0.00032876,2]
[314867535,1708601443600,-500.0,0.00032876,2]
[314867536,1708601443609,-500.0,0.00032876,2]
[314867537,1708601443618,-500.0,0.00032876,2]
[314867538,1708601443629,-500.0,0.00032876,2]
[314867539,1708601443639,-615.5,0.00032876,2]
[314867540,1708601443648,-500.0,0.00032876,2]
[314867541,1708601443658,-500.0,0.00032876,2]
[314867542,1708601443667,-500.0,0.00032876,2]
[314867543,1708601443676,-500.0,0.00032876,2]
[314867544,1708601443686,-500.0,0.00032876,2]
[314867545,1708601443695,-618.86,0.00032876,2]
[314867546,1708601443705,-500.0,0.00032876,2]
[314867547,1708601443714,-500.0,0.00032876,2]
[314867548,1708601443723,-508.40922676,0.00032876,2]
[314867549,1708601443733,-870.75,0.00032876,2]
[314867550,1708601443742,-500.0,0.00032876,2]
[314867551,1708601443752,-1183.42,0.00032876,2]
[314867552,1708601443762,-500.0,0.00032876,2]
[314867553,1708601443771,-500.0,0.00032876,2]
[314867554,1708601443780,-500.0,0.00032876,2]
[314867555,1708601443790,-500.0,0.00032876,2]
[314867556,1708601443800,-500.0,0.00032876,2]
[314867557,1708601443809,-500.0,0.00032876,2]
[314867558,1708601443818,-500.0,0.00032876,2]
[314867559,1708601443828,-500.0,0.00032876,2]
[314867560,1708601443838,-439.86403807,0.00032876,2]
[314867561,1708601443848,-616.02,0.00032876,2]
[314867562,1708601443857,-1199.47,0.00032876,2]
[314867563,1708601443867,-500.0,0.00032876,2]
[314867564,1708601443876,-500.0,0.00032876,2]
[314867565,1708601443885,-500.0,0.00032876,2]
[314867566,1708601443895,-500.0,0.00032876,2]
[314867567,1708601443904,-532.54,0.00032876,2]
[314867568,1708601443913,-500.0,0.00032876,2]
[314867569,1708601443923,-500.0,0.00032876,2]
[314867570,1708601443932,-560.66,0.00032876,2]
[314867571,1708601443942,-500.0,0.00032876,2]
[314867572,1708601443951,-500.0,0.00032876,2]
[314867573,1708601443961,-500.0,0.00032876,2]
[314867574,1708601443971,-500.0,0.00032876,2]
[314867575,1708601443980,-500.0,0.00032876,2]
[314867576,1708601443990,-500.0,0.00032876,2]
[314867577,1708601443999,-757.8,0.00032876,2]
[314867578,1708601444008,-500.0,0.00032876,2]
[314867579,1708601444018,-500.0,0.00032876,2]
[314867580,1708601444027,-500.0,0.00032876,2]
[314867581,1708601444037,-500.0,0.00032876,2]
[314867582,1708601444046,-500.0,0.00032876,2]
[314867583,1708601444056,-321.2326563,0.00032876,2]
[314867584,1708601444065,-1169.23,0.00032876,2]
[314867585,1708601444075,-506.1,0.00032876,2]
[314867586,1708601444085,-1079.59,0.00032876,2]
[314867587,1708601444095,-500.0,0.00032876,2]
[314867588,1708601444104,-500.0,0.00032876,2]
[314867589,1708601444114,-293.83983516,0.00032876,2]
[314867590,1708601444123,-548.6,0.00032876,2]
[314867591,1708601444132,-500.0,0.00032876,2]
[314867592,1708601444141,-500.0,0.00032876,2]
[314867593,1708601444150,-699.53,0.00032876,2]
[314867594,1708601444159,-353.04300628,0.00032876,2]
[314867595,1708601444168,-500.0,0.00032876,2]
[314867596,1708601444177,-500.0,0.00032876,2]
[314867597,1708601444186,-510.95,0.00032876,2]
[314867598,1708601444195,-539.27,0.00032876,2]
[314867599,1708601444204,-546.38,0.00032876,2]
[314867600,1708601444213,-500.0,0.00032876,2]
[314867601,1708601444221,-500.0,0.00032876,2]
[314867602,1708601444231,-974.31,0.00032876,2]
[314867603,1708601444240,-934.97,0.00032876,2]
[314867604,1708601444249,-1055.04,0.00032876,2]
[314867605,1708601444258,-500.0,0.00032876,2]
[314867606,1708601444267,-1281.07,0.00032876,2]
[314867607,1708601444276,-500.0,0.00032876,2]
[314867608,1708601444285,-500.0,0.00032876,2]
[314867609,1708601444294,-500.0,0.00032876,2]
[314867610,1708601444304,-757.37,0.00032876,2]
[314867611,1708601444313,-820.71,0.00032876,2]
[314867612,1708601444323,-500.0,0.00032876,2]
[314867613,1708601444332,-500.0,0.00032876,2]
[314867614,1708601444341,-500.0,0.00032876,2]
[314867615,1708601444350,-500.0,0.00032876,2]
[314867616,1708601444359,-500.0,0.00032876,2]
[314867617,1708601444368,-941.22,0.00032876,2]
[314867618,1708601444377,-500.0,0.00032876,2]
[314867619,1708601444386,-500.0,0.00032876,2]
[314867620,1708601444395,-624.96,0.00032876,2]
[314867621,1708601444406,-759.78,0.00032876,2]
[314867622,1708601444415,-505.83,0.00032876,2]
[314867623,1708601444424,-652.1,0.00032876,2]
[314867624,1708601444433,-500.0,0.00032876,2]
[314867625,1708601444443,-500.0,0.00032876,2]
[314867626,1708601444452,-500.0,0.00032876,2]
[314867627,1708601444462,-500.0,0.00032876,2]
[314867628,1708601444471,-705.47,0.00032876,2]
[314867629,1708601444481,-618.82,0.00032876,2]
[314867630,1708601444490,-500.0,0.00032876,2]
[314867631,1708601444500,-500.0,0.00032876,2]
[314867632,1708601444509,-919.79,0.00032876,2]
[314867633,1708601444518,-500.0,0.00032876,2]
[314867634,1708601444528,-500.0,0.00032876,2]
[314867635,1708601444537,-500.0,0.00032876,2]
[314867636,1708601444550,-500.0,0.00032876,2]
[314867637,1708601444559,-500.0,0.00032876,2]
[314867638,1708601444568,-500.0,0.00032876,2]
[314867639,1708601444577,-500.0,0.00032876,2]
[314867640,1708601444589,-500.0,0.00032876,2]
[314867641,1708601444598,-500.0,0.00032876,2]
[314867642,1708601444607,-764.4,0.00032876,2]
[314867643,1708601444616,-500.0,0.00032876,2]
[314867644,1708601444627,-500.0,0.00032876,2]
[314867645,1708601444636,-524.5,0.00032876,2]
[314867646,1708601444645,-1154.71,0.00032876,2]
[314867647,1708601444655,-500.0,0.00032876,2]
[314867648,1708601444664,-237.04284291,0.00032876,2]
[314867649,1708601445248,-372.80715709,0.00032876,2]
[314867650,1708601445257,-500.0,0.00032876,2]
[314867651,1708601445266,-500.0,0.00032876,2]
[314867652,1708601445275,-500.0,0.00032876,2]
[314867653,1708601445284,-924.37,0.00032876,2]
[314867654,1708601445293,-500.0,0.00032876,2]
[314867655,1708601445302,-515.12176087,0.00032876,2]
[314867656,1708601445311,-500.0,0.00032876,2]
[314867657,1708601445320,-500.0,0.00032876,2]
[314867658,1708601445329,-500.0,0.00032876,2]
[314867659,1708601445339,-500.0,0.00032876,2]
[314867660,1708601445349,-1234.81,0.00032876,2]
[314867661,1708601445358,-500.0,0.00032876,2]
[314867662,1708601445367,-656.44,0.00032876,2]
[314867663,1708601445375,-500.0,0.00032876,2]
[314867664,1708601445384,-541.43,0.00032876,2]
[314867665,1708601445394,-500.0,0.00032876,2]
[314867666,1708601445403,-500.0,0.00032876,2]
[314867667,1708601445412,-500.0,0.00032876,2]
[314867668,1708601445421,-500.0,0.00032876,2]
[314867669,1708601445430,-803.24,0.00032876,2]
[314867670,1708601445439,-500.0,0.00032876,2]
[314867671,1708601445448,-665.48,0.00032876,2]
[314867672,1708601445457,-895.05,0.00032876,2]
[314867673,1708601445466,-1014.33,0.00032876,2]
[314867674,1708601445475,-500.0,0.00032876,2]
[314867675,1708601445484,-500.0,0.00032876,2]
[314867676,1708601445493,-1034.05,0.00032876,2]
[314867677,1708601445502,-500.0,0.00032876,2]
[314867678,1708601445511,-532.81403534,0.00032876,2]
[314867679,1708601445520,-580.41,0.00032876,2]
[314867680,1708601445530,-500.0,0.00032876,2]
[314867681,1708601445541,-500.0,0.00032876,2]
[314867682,1708601445555,-500.0,0.00032876,2]
[314867683,1708601445564,-648.26,0.00032876,2]
[314867684,1708601445573,-500.0,0.00032876,2]
[314867685,1708601445583,-500.0,0.00032876,2]
[314867686,1708601445594,-500.0,0.00032876,2]
[314867687,1708601445603,-500.0,0.00032876,2]
[314867688,1708601445612,-502.08,0.00032876,2]
[314867689,1708601445623,-500.0,0.00032876,2]
[314867690,1708601445633,-2450.38,0.00032876,2]
[314867691,1708601445642,-500.0,0.00032876,2]
[314867692,1708601445651,-500.0,0.00032876,2]
[314867693,1708601445660,-500.0,0.00032876,2]
[314867694,1708601445669,-500.0,0.00032876,2]
[314867695,1708601445678,-168.72259126,0.00032876,2]
[314867696,1708601445687,-950.09,0.00032876,2]
[314867697,1708601445696,-4440.2,0.00032876,2]
[314867698,1708601445705,-500.0,0.00032876,2]
[314867699,1708601445796,-1331.29,0.00032876,2]
[314867700,1708601445843,-500.0,0.00032876,2]
[314867701,1708601445853,-500.0,0.00032876,2]
[314867702,1708601445862,-500.0,0.00032876,2]
[314867703,1708601445871,-500.0,0.00032876,2]
[314867704,1708601445881,-500.0,0.00032876,2]
[314867705,1708601445890,-500.0,0.00032876,2]
[314867706,1708601445899,-500.0,0.00032876,2]
[314867707,1708601445908,-2779.37,0.00032876,2]
[314867708,1708601445917,-500.0,0.00032876,2]
[314867709,1708601445927,-1115.9,0.00032876,2]
[314867711,1708601445936,-250.0,0.00032876,2]
[314867713,1708601445945,-526.22,0.00032876,2]
[314867715,1708601445954,-500.0,0.00032876,2]
[314867717,1708601445963,-500.0,0.00032876,2]
[314867719,1708601445973,-655.72,0.00032876,2]
[314867721,1708601445982,-6687.95,0.00032876,2]
[314867723,1708601445991,-500.0,0.00032876,2]
[314867724,1708601446001,-1219.39,0.00032876,2]
[314867725,1708601446010,-500.0,0.00032876,2]
[314867726,1708601446019,-542.3,0.00032876,2]
[314867727,1708601446028,-175.59,0.00032876,2]
[314867728,1708601446037,-741.16,0.00032876,2]
[314867730,1708601446047,-500.0,0.00032876,2]
[314867731,1708601446056,-500.0,0.00032876,2]
[314867732,1708601446065,-551.3,0.00032876,2]
[314867733,1708601446074,-3377.62,0.00032876,2]
[314867734,1708601446083,-500.0,0.00032876,2]
[314867735,1708601446092,-12772.45,0.00032876,2]
[314867736,1708601446101,-1657.31,0.00032876,2]
[314867737,1708601446110,-500.0,0.00032876,2]
[314867738,1708601446119,-689.06,0.00032876,2]
[314867739,1708601446128,-500.0,0.00032876,2]